Workbook

Sheet FSA Introduction

Sheet Classroom Data Entry
B1: Elementary Teacher | D1: Middle School | F1: Additional Raters
A2: Classroom Functioning Skills | B2: Independent | C2: With EA help | D2: ELA/SS | E2: Math/Sci. | H2: Average | I2: Total Mean | J2: Ind. Mean | K2: With Help Mean | L2: Skill Clusters | M2: Average | N2: Percentage | O2: Ave. Line
A3: Attends class daily | D3: 5 | E3: 5 | H3: =AVERAGEIF(B3:G3,">0") -> 5 | I3: =$H$23 -> 2.975 | J3: =$B$23 -> 0 | K3: ='Classroom Data Entry'!$C$23 -> 0 | L3: Oral Communication | M3: =AVERAGE(H7:H8) -> 3.75 | N3: =(M3-1)/4*100 -> 68.75 | O3: =$N$10 -> 49.375
A4: Arrives on time | D4: 4 | E4: 4 | H4: 4 | I4: 2.975 | J4: 0 | K4: ='Classroom Data Entry'!$C$23 -> 0 | L4: Reading Competencies | M4: =AVERAGE(H9:H10) -> 2.5 | N4: 37.5 | O4: 49.375
A5: Follows routines | D5: 3 | E5: 3 | H5: 3 | I5: 2.975 | J5: 0 | K5: ='Classroom Data Entry'!$C$23 -> 0 | L5: Writing Competencies | M5: =AVERAGE(H11:H12) -> 2 | N5: =(M5-1)/4*100 -> 25 | O5: 49.375
A6: Attends to lessons | D6: 2 | E6: 3 | H6: 2.5 | I6: 2.975 | J6: 0 | K6: ='Classroom Data Entry'!$C$23 -> 0 | L6: Math Competencies | M6: =AVERAGE(H13:H14) -> 3.5 | N6: =(M6-1)/4*100 -> 62.5 | O6: 49.375
A7: Asks/answers questions | D7: 4 | E7: 4 | H7: 4 | I7: 2.975 | J7: 0 | K7: ='Classroom Data Entry'!$C$23 -> 0 | L7: Executive Functioning | M7: =(H6+H15+ H16+H17+H19)/5 -> 2.6 | N7: =(M7-1)/4*100 -> 40 | O7: 49.375
A8: Participates in discussions | D8: 3 | E8: 4 | H8: 3.5 | I8: 2.975 | J8: 0 | K8: ='Classroom Data Entry'!$C$23 -> 0 | L8: Memory Functioning | M8: =(H15+H18)/2 -> 2.75 | N8: =(M8-1)/4*100 -> 43.75 | O8: 49.375
A9: Reads aloud accurately | D9: 2 | E9: 2 | H9: 2 | I9: 2.975 | J9: 0 | K9: ='Classroom Data Entry'!$C$23 -> 0 | L9: Cooperative Behavior | M9: =AVERAGE(H20:H22) -> 2.666666667 | N9: =(M9-1)/4*100 -> 41.66666667
A10: Understands what is read | D10: 3 | E10: 3 | H10: 3 | I10: 2.975 | L10: Total Functioning | M10: =H23 -> 2.975 | N10: =(H23-1)/4*100 -> 49.375
A11: Writes clearly | D11: 1 | E11: 2 | H11: 1.5 | I11: 2.975 | J11: =$B$23 -> 0 | K11: ='Classroom Data Entry'!$C$23 -> 0
A12: Writes neatly | D12: 3 | E12: 2 | H12: 2.5 | I12: 2.975 | J12: =$B$23 -> 0 | K12: ='Classroom Data Entry'!$C$23 -> 0
A13: Calculates accurately | E13: 4 | H13: 4 | I13: 2.975 | J13: =$B$23 -> 0 | K13: ='Classroom Data Entry'!$C$23 -> 0
A14: Solves math problems | E14: 3 | H14: 3 | I14: 2.975
A15: Follows instructions | D15: 2 | E15: 3 | H15: 2.5 | I15: 2.975 | J15: =$B$23 -> 0 | K15: ='Classroom Data Entry'!$C$23 -> 0
A16: Stays on task | D16: 2 | E16: 3 | H16: 2.5 | I16: 2.975 | J16: 0 | K16: ='Classroom Data Entry'!$C$23 -> 0
A17: Completes assignments | D17: 2 | E17: 3 | H17: 2.5 | I17: 2.975 | J17: 0 | K17: ='Classroom Data Entry'!$C$23 -> 0
A18: Remembers concepts | D18: 2 | E18: 4 | H18: 3 | I18: 2.975 | J18: 0 | K18: ='Classroom Data Entry'!$C$23 -> 0
A19: Keeps materials organized | D19: 1 | E19: 5 | H19: 3 | I19: 2.975 | J19: 0 | K19: ='Classroom Data Entry'!$C$23 -> 0
A20: Follows rules | D20: 3 | E20: 4 | H20: 3.5 | I20: 2.975 | J20: 0 | K20: ='Classroom Data Entry'!$C$23 -> 0
A21: Complies with adults | D21: 2 | E21: 4 | H21: 3 | I21: 2.975 | J21: 0 | K21: ='Classroom Data Entry'!$C$23 -> 0
A22: Contributes in groups | D22: 1 | E22: 2 | H22: 1.5 | I22: 2.975 | J22: 0 | K22: ='Classroom Data Entry'!$C$23 -> 0
A23: Total Classroom Functioning | B23: =SUM(B3:B22)/COUNTIF(B3:B22,"<>0") -> 0 | C23: =SUM(C3:C22)/COUNTIF(C3:C22,"<>0") -> 0 | D23: =SUM(D3:D22)/COUNTIF(D3:D22,"<>0") -> 2.25 | E23: =SUM(E3:E22)/COUNTIF(E3:E22,"<>0") -> 3.35 | F23: 0 | G23: 0 | H23: =SUM(H3:H22)/COUNTIF(H3:H22,">0") -> 2.975
A24: EAL/SS Percentage: | D24: =(D23-1)/4*100 -> 31.25 | F24: =(F23-1)/4*100 -> -25 | H24: =_xlfn.STDEV.S(H3:H22) -> 0.8656454847
A25: Math/Sci. Percentage: | E25: =(E23-1)/4*100 -> 58.75 | G25: =(G23-1)/4*100 -> -25 | H25: =MAX(H3:H22) -> 5
A26: Correlation - ELA/SS vs. Math/Sci: | D26: =CORREL(D3:D22,E3:E22) -> 0.4417261043 | H26: =MIN(H3:H22) -> 1.5
H27: =(H25-H26) -> 3.5
H28: =MEDIAN(H3:H22) -> 3
B29: Brian Anderson

Sheet CF Clusters Chart
M25: ='Classroom Data Entry'!$B$29 -> Brian Anderson

Sheet CF Elem. Chart

Sheet EA Support Chart

Sheet CF Per Subject Chart
P25: ='Classroom Data Entry'!$D$24/100 -> 0.3125 | R25: ='Classroom Data Entry'!$E$25/100 -> 0.5875 | U25: ='Classroom Data Entry'!$F$24/100 -> -0.25 | W25: ='Classroom Data Entry'!$G$25/100 -> -0.25

Sheet Ave. CF Chart
P5: ='Classroom Data Entry'!$B$29 -> Brian Anderson
P6: Significant Problems
P7: =IF(('Classroom Data Entry'!H3 < 3),('Classroom Data Entry'!A3), "") -> 
P8: =IF(('Classroom Data Entry'!H4 < 3),('Classroom Data Entry'!A4), "") -> 
P9: =IF(('Classroom Data Entry'!H5 < 3),('Classroom Data Entry'!A5), "") -> 
P10: =IF(('Classroom Data Entry'!H6 < 3),('Classroom Data Entry'!A6), "") -> Attends to lessons
P11: =IF(('Classroom Data Entry'!H7 < 3),('Classroom Data Entry'!A7), "") -> 
P12: =IF(('Classroom Data Entry'!H8 < 3),('Classroom Data Entry'!A8), "") -> 
P13: =IF(('Classroom Data Entry'!H9 < 3),('Classroom Data Entry'!A9), "") -> Reads aloud accurately
P14: =IF(('Classroom Data Entry'!H11 < 3),('Classroom Data Entry'!A11), "") -> Writes clearly
P15: =IF(('Classroom Data Entry'!H12 < 3),('Classroom Data Entry'!A12), "") -> Writes neatly
P16: =IF(('Classroom Data Entry'!H13 < 3),('Classroom Data Entry'!A13), "") -> 
P17: =IF(('Classroom Data Entry'!H15 < 3),('Classroom Data Entry'!A15), "") -> Follows instructions
P18: =IF(('Classroom Data Entry'!H16 < 3),('Classroom Data Entry'!A16), "") -> Stays on task
P19: =IF(('Classroom Data Entry'!H17 < 3),('Classroom Data Entry'!A17), "") -> Completes assignments
P20: =IF(('Classroom Data Entry'!H18 < 3),('Classroom Data Entry'!A18), "") -> 
G21: ='Ave. CF Chart'!P12= IF((G2 < 2.5),(A2), "")= IF((G2 < 2.5),(A2), "") -> FALSE | P21: =IF(('Classroom Data Entry'!H19 < 3),('Classroom Data Entry'!A19), "") -> 
P22: =IF(('Classroom Data Entry'!H20 < 3),('Classroom Data Entry'!A20), "") -> 
P23: =IF(('Classroom Data Entry'!H21 < 3),('Classroom Data Entry'!A21), "") -> 
P24: =IF(('Classroom Data Entry'!H22 < 3),('Classroom Data Entry'!A22), "") -> Contributes in groups

Sheet Well-Being Data Entry
A1: Sense of Well-Being | B1: Elementary | C1: ELA/SS | D1: Math/Sci. | E1: EA | F1: Parent | G1: Average | I1: School Averages
A2: Feels compenent | B2: 2 | F2: 3 | G2: =AVERAGE(B2:F2) -> 2.5 | H2: =$G$17 -> 3.333333333 | I2: =AVERAGE(B2:E2) -> 2
A3: Feels loved/accepted | B3: 4 | F3: 5 | G3: 4.5 | H3: 3.333333333 | I3: =AVERAGE(B3:E3) -> 4
A4: Emotionaly stable | B4: 4 | F4: 3 | G4: 3.5 | H4: 3.333333333 | I4: 4
A5: Compliments self | B5: 1 | F5: 1 | G5: 1 | H5: 3.333333333 | I5: 1
A6: Optimistic / hopeful | B6: 2 | F6: 3 | G6: 2.5 | H6: 3.333333333 | I6: 2
A7: Sense of humour | B7: 3 | F7: 3 | G7: 3 | H7: 3.333333333 | I7: 3
A8: Anxious / feaful | B8: 2 | F8: 3 | G8: 2.5 | H8: 3.333333333 | I8: 2
A9: Angry / irritable | B9: 4 | F9: 3 | G9: 3.5 | H9: 3.333333333 | I9: 4
A10: Sad / unhappy | B10: 3 | F10: 2 | G10: 2.5 | H10: 3.333333333 | I10: 3
A11: Physically hurts self | B11: 5 | F11: 5 | G11: 5 | H11: 3.333333333 | I11: 5
A12: Threans suicide | B12: 5 | F12: 5 | G12: 5 | H12: 3.333333333 | I12: 5
A13: Looks tired / yawns | B13: 3 | F13: 3 | G13: 3 | H13: 3.333333333 | I13: 3
A14: Feels hungry | B14: 4 | F14: 4 | G14: 4 | H14: 3.333333333 | I14: 4
A15: Feels sick / pains | B15: 4 | F15: 4 | G15: 4 | H15: 3.333333333 | I15: 4
A16: Puts self down | B16: 3 | F16: 4 | G16: 3.5 | H16: 3.333333333 | I16: 3
A17: Ave. Emotional Well-Being | B17: =AVERAGE(B2:B16) -> 3.266666667 | C17: =SUM(C2:C16)/COUNTIF(C2:C16,">0") ->  | D17: =SUM(D2:D16)/COUNTIF(D2:D16,">0") ->  | F17: 3.4 | G17: 3.333333333
B18: Teacher Ave. | C18: =AVERAGE(C17:D17) ->  | F18: Total % Score: | G18: =(G17-1)/4*100 -> 58.33333333
B20: Correlation - Elem Teacher & Parent: | C20: =CORREL(B2:B16,F2:F16) -> 0.7888467084
A21: Correlation - ELA and Math: | C21: =CORREL(C2:C16,D2:D16) -> 
A22: Correlation - ELA and Parent: | C22: =CORREL(C2:C16,F2:F16) -> 
A23: Correlation - Math and Parent: | C23: =CORREL(D3:D17,F3:F17) -> 

Sheet Peer Functioning
A1: Peer Functioning | B1: Elementary | C1: ELA/SS | D1: Math/Sci. | E1: EA | F1: Parent | G1: Average | I1: School Averages
A2: Positive Engagement | B2: 3 | F2: 2 | G2: =AVERAGE(B2:F2) -> 2.5 | H2: =$G$14 -> 4.041666667 | I2: =AVERAGE(B2:E2) -> 3
A3: Social Problem Soving | B3: 2 | F3: 2 | G3: 2 | H3: 4.041666667 | I3: 2
A4: Close Friendships | B4: 2 | F4: 3 | G4: 2.5 | H4: 4.041666667 | I4: 2
A5: Social Acceptance | B5: 4 | F5: 3 | G5: 3.5 | H5: 4.041666667 | I5: 4
A6: Same-Age Peers | B6: 5 | F6: 5 | G6: 5 | H6: 4.041666667 | I6: 5
A7: Swears Aloud | B7: 5 | F7: 5 | G7: 5 | H7: 4.041666667 | I7: 5
A8: Verbally Threatens | B8: 4 | F8: 5 | G8: 4.5 | H8: 4.041666667 | I8: 4
A9: Destroys Property | B9: 5 | F9: 5 | G9: 5 | H9: 4.041666667 | I9: 5
A10: Violent Toward Peers | B10: 5 | F10: 5 | G10: 5 | H10: 4.041666667 | I10: 5
A11: Bullies Other Students | B11: 5 | F11: 5 | G11: 5 | H11: 4.041666667 | I11: 5
A12: Negative Peer Group | B12: 5 | F12: 5 | G12: 5 | H12: 4.041666667 | I12: 5
A13: Withdraws from Peers | B13: 3 | F13: 4 | G13: 3.5 | H13: 4.041666667 | I13: 3
A14: Average Peer Functioning | B14: =AVERAGE(B2:B13) -> 4 | C14: =SUM(C2:C13)/COUNTIF(C2:C13,">0") ->  | D14: =SUM(D2:D13)/COUNTIF(D2:D13,">0") ->  | E14: =SUM(E2:E13)/COUNTIF(E2:E13,">0") ->  | F14: =SUM(F2:F13)/COUNTIF(F2:F13,">0") -> 4.083333333 | G14: =SUM(G2:G13)/COUNTIF(G2:G13,">0") -> 4.041666667
B15: Teacher Ave. | C15: =AVERAGE(C14:D14) ->  | F15: Total % Score: | G15: =(G14-1)/4*100 -> 76.04166667
B17: Correlation - Elem Teacher & Parent: | C17: =CORREL(B2:B13,F2:F13) -> 0.8509629434
A18: Correlation - ELA and Math: | C18: =CORREL(C2:C13,D2:D13) -> 
A19: Correlation - ELA and Parent: | C19: =CORREL(C2:C13,F2:F13) -> 
A20: Correlation - Math and Parent: | C20: =CORREL(D2:D13,F2:F13) -> 

Sheet Class Data - Pre&Post
A1: Classroom Functioning Skills | B1: Regular - Pre | C1: Pre-Ave. | D1: Regular-Post | E1: Post-Ave. | F1: ELA - Pre | G1: ELA - Post | H1: Math - Pre | I1: Math - post | J1: Average
A2: Attends class daily | B2: ='Classroom Data Entry'!B3 -> 0 | C2: =$B$20 ->  | D2: 5 | E2: =$D$20 -> 3.611111111 | F2: ='Classroom Data Entry'!D3 -> 5 | H2: ='Classroom Data Entry'!E3 -> 5 | J2: =AVERAGE(F2:I2) -> 5
A3: Arrives on time | B3: ='Classroom Data Entry'!B4 -> 0 | C3: =$B$20 ->  | D3: 4 | E3: =$D$20 -> 3.611111111 | F3: ='Classroom Data Entry'!D4 -> 4 | H3: ='Classroom Data Entry'!E4 -> 4 | J3: 4
A4: Follows routines | B4: ='Classroom Data Entry'!B5 -> 0 | D4: 4 | E4: 3.611111111 | F4: ='Classroom Data Entry'!D5 -> 3 | H4: ='Classroom Data Entry'!E5 -> 3 | J4: 3
A5: Attends to lessons | B5: ='Classroom Data Entry'!B6 -> 0 | D5: 4 | E5: 3.611111111 | F5: ='Classroom Data Entry'!D6 -> 2 | H5: ='Classroom Data Entry'!E6 -> 3 | J5: 2.5
A6: Asks/answers questions | B6: ='Classroom Data Entry'!B7 -> 0 | D6: 3 | E6: 3.611111111 | F6: ='Classroom Data Entry'!D7 -> 4 | H6: ='Classroom Data Entry'!E7 -> 4 | J6: 4
A7: Participates in discussions | B7: ='Classroom Data Entry'!B8 -> 0 | D7: 4 | E7: 3.611111111 | F7: ='Classroom Data Entry'!D8 -> 3 | H7: ='Classroom Data Entry'!E8 -> 4 | J7: 3.5
A8: Reads accurately | B8: ='Classroom Data Entry'!B9 -> 0 | D8: 3 | E8: 3.611111111 | F8: ='Classroom Data Entry'!D9 -> 2 | H8: ='Classroom Data Entry'!E9 -> 2 | J8: 2
A9: Writes clearly | B9: ='Classroom Data Entry'!B11 -> 0 | D9: 2 | E9: 3.611111111 | F9: ='Classroom Data Entry'!D11 -> 1 | H9: ='Classroom Data Entry'!E11 -> 2 | J9: 1.5
A10: Writes neatly | B10: ='Classroom Data Entry'!B12 -> 0 | D10: 3 | E10: 3.611111111 | F10: ='Classroom Data Entry'!D12 -> 3 | H10: ='Classroom Data Entry'!E12 -> 2 | J10: 2.5
A11: Calculates accurately | B11: ='Classroom Data Entry'!B13 -> 0 | D11: 4 | E11: 3.611111111 | F11: ='Classroom Data Entry'!D13 -> 0 | H11: ='Classroom Data Entry'!E13 -> 4 | J11: 2
A12: Follows instructions | B12: ='Classroom Data Entry'!B15 -> 0 | D12: 4 | E12: 3.611111111 | F12: ='Classroom Data Entry'!D15 -> 2 | H12: ='Classroom Data Entry'!E15 -> 3 | J12: 2.5
A13: Stays on task | B13: ='Classroom Data Entry'!B16 -> 0 | D13: 4 | E13: 3.611111111 | F13: ='Classroom Data Entry'!D16 -> 2 | H13: ='Classroom Data Entry'!E16 -> 3 | J13: 2.5
A14: Completes assignments | B14: ='Classroom Data Entry'!B17 -> 0 | D14: 4 | E14: 3.611111111 | F14: ='Classroom Data Entry'!D17 -> 2 | H14: ='Classroom Data Entry'!E17 -> 3 | J14: 2.5
A15: Remembers concepts | B15: ='Classroom Data Entry'!B18 -> 0 | D15: 3 | E15: 3.611111111 | F15: ='Classroom Data Entry'!D18 -> 2 | H15: ='Classroom Data Entry'!E18 -> 4 | J15: 3
A16: Keeps materials organized | B16: ='Classroom Data Entry'!B19 -> 0 | D16: 3 | E16: 3.611111111 | F16: ='Classroom Data Entry'!D19 -> 1 | H16: ='Classroom Data Entry'!E19 -> 5 | J16: 3
A17: Follows rules | B17: ='Classroom Data Entry'!B20 -> 0 | D17: 4 | E17: 3.611111111 | F17: ='Classroom Data Entry'!D20 -> 3 | H17: ='Classroom Data Entry'!E20 -> 4 | J17: 3.5
A18: Complies with adults | B18: ='Classroom Data Entry'!B21 -> 0 | D18: 4 | E18: 3.611111111 | F18: ='Classroom Data Entry'!D21 -> 2 | H18: ='Classroom Data Entry'!E21 -> 4 | J18: 3
A19: Cooperates in groups | B19: ='Classroom Data Entry'!B22 -> 0 | D19: 3 | E19: 3.611111111 | F19: ='Classroom Data Entry'!D22 -> 1 | H19: ='Classroom Data Entry'!E22 -> 2 | J19: 1.5
A20: Total Classroom Functioning | B20: =SUM(B2:B19)/COUNTIF(B2:B19,">0") ->  | D20: 3.611111111 | F20: =SUM(F2:F19)/COUNTIF(F2:F19,">0") -> 2.470588235 | G20: =SUM(G2:G19)/COUNTIF(G2:G19,">0") ->  | H20: =SUM(H2:H19)/COUNTIF(H2:H19,">0") -> 3.388888889 | J20: =SUM(J2:J19)/COUNTIF(J2:J19,">0") -> 2.861111111
J21: =_xlfn.STDEV.S(J2:J19) -> 0.9043287331 | K21: SD
A22: Correlation - ELA/SS and Math/Sci: | G22: =CORREL(F2:F19,H2:H19) -> 0.3240593148 | J22: =MAX(J2:J19) -> 5 | K22: Max.
J23: =MIN(J2:J19) -> 1.5 | K23: Min.
D24: Percentages: | F24: =(F20-1)/4*100 -> 36.76470588 | G24: =(G20-1)/4*100 ->  | H24: 59.72222222 | J24: =(J22-J23) -> 3.5 | K24: Range
J25: =MEDIAN(J2:J19) -> 2.75 | K25: Median

Sheet ELA Graph - Pre&Post

Sheet Math Graph - Pre&Post
